fUSD/lending_fUSD_20260429
["ID","MTS","AMOUNT","RATE_DAILY","PERIOD"]
[421327807,1777441685969,500.0,8.982e-05,2]
[421327808,1777441686019,500.0,8.982e-05,2]
[421327809,1777441698390,500.0,8.982e-05,2]
[421327810,1777441698428,500.0,8.982e-05,2]
[421327811,1777441698465,500.0,8.982e-05,2]
[421327812,1777441698501,500.0,8.982e-05,2]
[421327813,1777441698543,431.08182383,8.982e-05,2]
[421327814,1777441699101,-68.91817617,8.982e-05,2]
[421327815,1777441699140,-500.0,8.982e-05,2]
[421327816,1777441699175,-500.0,8.982e-05,2]
[421327817,1777441699209,-500.0,8.982e-05,2]
[421327818,1777441699245,-500.0,8.982e-05,2]
[421327819,1777441699282,-362.17364766,8.982e-05,2]
[421327820,1777441699451,1980.0,0.0002,120]
[421327821,1777441702253,-137.82635234,8.982e-05,2]
[421327822,1777441702297,-310.4097113,8.982e-05,2]
[421327823,1777441702334,-500.0,8.982e-05,2]
[421327824,1777441702372,-500.0,8.982e-05,2]
[421327825,1777441702409,-500.0,8.982e-05,2]
[421327826,1777441702449,-500.0,8.982e-05,2]
[421327827,1777441732871,103.53787272,8.982e-05,2]
[421327828,1777441732901,396.46212728,8.982e-05,2]
[421327829,1777441732939,500.0,8.982e-05,2]
[421327830,1777441732976,500.0,8.982e-05,2]
[421327831,1777441733013,500.0,8.982e-05,2]
[421327832,1777441733048,500.0,8.982e-05,2]
[421327834,1777441752025,500.0,8.982e-05,2]
[421327835,1777441752360,405.66936425,8.982e-05,2]
[421327836,1777441754414,166.89110624,8.982e-05,2]
[421327838,1777441766092,500.0,8.982e-05,2]
[421327839,1777441766153,500.0,8.982e-05,2]
[421327840,1777441766191,188.79004996,8.982e-05,2]
[421327841,1777441772156,342.19735227,8.982e-05,2]
[421327842,1777441772184,157.80264773,8.982e-05,2]
[421327843,1777441772219,500.0,8.982e-05,2]
[421327844,1777441772261,500.0,8.982e-05,2]
[421327845,1777441772331,325.51213913,8.982e-05,2]
[421327846,1777441788587,500.0,8.982e-05,2]
[421327847,1777441788644,405.66936424,8.982e-05,2]
[421327848,1777441801881,500.0,8.982e-05,2]
[421327849,1777441801950,405.66936425,8.982e-05,2]
[421327850,1777441815339,500.0,8.982e-05,2]
[421327851,1777441815450,500.0,8.982e-05,2]
[421327852,1777441816699,630.20485565,8.982e-05,2]
[421327853,1777441820449,75.151629,8.982e-05,2]
[421327854,1777441820478,138.69418523,8.982e-05,2]
[421327858,1777441831479,-165564.88992262,8.983e-05,2]
[421327859,1777441831581,-562.64624889,8.983e-05,2]
[421327860,1777441831637,-737.89658391,8.983e-05,2]
[421327861,1777441831649,-7376.92348565,8.983e-05,2]
[421327862,1777441831662,-901.23418243,8.983e-05,2]
[421327863,1777441831676,-1237.08734021,8.983e-05,2]
[421327864,1777441831690,-454.45773093,8.983e-05,2]
[421327865,1777441831703,-895.41,8.983e-05,2]
[421327866,1777441831717,-2712.58744176,8.983e-05,2]
[421327880,1777441833116,500.0,8.982e-05,2]
[421327881,1777441833175,405.66936425,8.982e-05,2]
[421327885,1777441837996,-916.5888,8.983e-05,2]
[421327886,1777441838009,-77079.53164845,8.983e-05,2]
[421327977,1777441840080,-710.75,8.983e-05,2]
[421327978,1777441840133,-894.10241323,8.983e-05,2]
[421327979,1777441840187,-1029.67326749,8.983e-05,2]
[421327980,1777441840294,-6061.57519651,8.983e-05,2]
[421327981,1777441840306,-6087.10756133,8.983e-05,2]
[421327995,1777441842662,-6649.42044647,8.983e-05,2]
[421327996,1777441842979,-416.0,8.983e-05,2]
[421328063,1777441845666,-11710.5776177,8.983e-05,2]
[421328064,1777441845983,-392.00860854,8.983e-05,2]
[421328065,1777441846039,-381.13930652,8.983e-05,2]
[421328066,1777441846093,-7810.24304539,8.983e-05,2]
[421328067,1777441846110,-315.52696158,8.983e-05,2]
[421328068,1777441846260,-370.32589705,8.983e-05,2]
[421328136,1777441847758,500.0,8.982e-05,2]
[421328137,1777441847806,405.66936425,8.982e-05,2]
[421328138,1777441858190,152.0,8.991e-05,7]
[421328139,1777441874711,387.0,8.991e-05,3]
[421328140,1777441929308,368.0,8.991e-05,3]
[421328141,1777441987763,349.0,8.991e-05,3]
[421328142,1777442047205,332.0,8.991e-05,3]
[421328143,1777442075544,171.0,8.991e-05,3]
[421328146,1777442107657,158.0,8.991e-05,3]
[421328147,1777442114453,315.0,8.991e-05,3]
[421328150,1777442225157,300.0,8.991e-05,3]
[421328151,1777442232630,285.0,8.991e-05,3]
[421328152,1777442287410,270.0,8.991e-05,3]
[421328153,1777442298609,4055.83306252,8e-05,2]
[421328154,1777442346816,257.0,8.991e-05,3]
[421328155,1777442405661,158.0,8.991e-05,3]
[421328156,1777442405883,171.0,8.991e-05,3]
[421328157,1777442410029,244.0,8.991e-05,3]
[421328159,1777442467426,232.0,8.991e-05,3]
[421328160,1777442528843,220.0,8.991e-05,3]
[421328161,1777442589378,209.0,8.991e-05,3]
[421328162,1777442647901,199.0,8.991e-05,3]
[421328163,1777442708517,172.0,8.991e-05,3]
[421328164,1777442710709,189.0,8.991e-05,3]
[421328165,1777442710754,158.0,8.991e-05,3]
[421328167,1777442767082,179.0,8.991e-05,3]
[421328168,1777442829033,170.0,8.991e-05,3]
[421328169,1777442888959,162.0,8.991e-05,3]
[421328193,1777442949654,154.0,8.991e-05,3]
[421328256,1777443005504,2840.07580558,8.733e-05,2]
[421328257,1777443007243,159.0,8.991e-05,3]
[421328258,1777443030601,154.0,8.991e-05,3]
[421328260,1777443031724,-748.55893106,8.783e-05,2]
[421328261,1777443031738,-56063.26282386,8.783e-05,2]
[421328262,1777443031750,-29324.49894474,8.783e-05,2]
[421328263,1777443031831,-605.18483642,8.783e-05,2]
[421328264,1777443031936,-550.00639416,8.783e-05,2]
[421328265,1777443031948,-739.83242181,8.783e-05,2]
[421328266,1777443031988,-255.75980045,8.783e-05,2]
[421328294,1777443035377,172.0,8.991e-05,3]
[421328298,1777443037933,-332.15303497,8.782e-05,2]
[421328299,1777443037944,-500.0,8.782e-05,2]
[421328300,1777443037955,-500.0,8.782e-05,2]
[421328301,1777443037965,-156.0518279,8.782e-05,2]
[421328302,1777443037977,-500.0,8.782e-05,2]
[421328303,1777443037988,-500.0,8.782e-05,2]
[421328304,1777443037999,-429.34116973,8.782e-05,2]
[421328305,1777443038012,-70.65883027,8.782e-05,2]
[421328306,1777443038022,-308.1479148,8.782e-05,2]
[421328307,1777443038032,-500.0,8.782e-05,2]
[421328308,1777443038043,-284.54325494,8.782e-05,2]
[421328309,1777443038090,-89.39584451,8.782e-05,2]
[421328310,1777443038100,-500.0,8.782e-05,2]
[421328311,1777443038111,-500.0,8.782e-05,2]
[421328312,1777443038121,-500.0,8.782e-05,2]
[421328313,1777443038131,-500.0,8.782e-05,2]
[421328314,1777443038142,-500.0,8.782e-05,2]
[421328315,1777443038152,-500.0,8.782e-05,2]
[421328316,1777443038163,-500.0,8.782e-05,2]
[421328317,1777443038173,-500.0,8.782e-05,2]
[421328318,1777443038183,-500.0,8.782e-05,2]
[421328319,1777443038199,-403.21724207,8.782e-05,2]
[421328320,1777443038212,-96.78275793,8.782e-05,2]
[421328321,1777443038222,-456.14837223,8.782e-05,2]
[421328322,1777443038236,-43.85162777,8.782e-05,2]
[421328324,1777443038247,-500.0,8.782e-05,2]
[421328326,1777443038258,-500.0,8.782e-05,2]
[421328328,1777443038269,-402.97225138,8.782e-05,2]
[421328330,1777443038279,-500.0,8.782e-05,2]
[421328332,1777443038290,-500.0,8.782e-05,2]
[421328334,1777443038300,-350.0,8.782e-05,2]
[421328336,1777443038310,-500.0,8.782e-05,2]
[421328338,1777443038320,-500.0,8.782e-05,2]
[421328340,1777443038330,-500.0,8.782e-05,2]
[421328342,1777443038340,-500.0,8.782e-05,2]
[421328344,1777443038351,-500.0,8.782e-05,2]
[421328347,1777443038361,-500.0,8.782e-05,2]
[421328349,1777443038371,-500.0,8.782e-05,2]
[421328351,1777443038381,-500.0,8.782e-05,2]
[421328353,1777443038390,-500.0,8.782e-05,2]
[421328355,1777443038400,-500.0,8.782e-05,2]
[421328357,1777443038411,-500.0,8.782e-05,2]
[421328359,1777443038420,-500.0,8.782e-05,2]
[421328361,1777443038432,-500.0,8.782e-05,2]
[421328363,1777443038442,-500.0,8.782e-05,2]
[421328365,1777443038452,-500.0,8.782e-05,2]
[421328367,1777443038463,-500.0,8.782e-05,2]
[421328369,1777443038473,-500.0,8.782e-05,2]
[421328371,1777443038484,-500.0,8.782e-05,2]
[421328373,1777443038494,-25187.86857257,8.783e-05,2]
[421328376,1777443038507,-48993.48432967,8.783e-05,2]
[421328378,1777443038518,-829.67010334,8.783e-05,2]
[421328380,1777443038530,-3796.22534557,8.783e-05,2]
[421328503,1777443039934,-2510.73356464,8.783e-05,2]
[421328509,1777443039987,-152516.97604634,8.783e-05,2]
[421328515,1777443040042,-1721.42231049,8.783e-05,2]
[421328527,1777443040149,-591.07158026,8.783e-05,2]
[421328530,1777443040163,-644.38,8.783e-05,2]
[421328566,1777443040519,-9948.13769428,8.783e-05,2]
[421328842,1777443045981,-511.63701206,8.783e-05,2]
[421328843,1777443046458,-7789.63561146,8.783e-05,2]
[421328844,1777443046513,-7019.88673891,8.783e-05,2]
[421328845,1777443046526,-492.98298303,8.783e-05,2]
[421328868,1777443048219,-661.24,8.783e-05,2]
[421328869,1777443048327,-648.92043422,8.783e-05,2]
[421328875,1777443067000,154.0,8.783e-05,3]
[421328876,1777443088331,1904.015,8.607e-05,2]
[421328877,1777443088386,191.371,8.607e-05,2]
[421328878,1777443130704,154.0,8.607e-05,3]
[421328879,1777443206830,154.0,8.607e-05,3]
[421328880,1777443233153,1503.72229894,8.683e-05,2]
[421328881,1777443253344,154.0,8.683e-05,3]
[421328882,1777443313447,154.0,8.683e-05,3]
[421328883,1777443351157,152.0,8.796e-05,7]
[421328884,1777443367594,154.0,8.683e-05,3]
[421328885,1777443429498,154.0,8.683e-05,3]
[421328886,1777443489012,154.0,8.683e-05,3]
[421328888,1777443547211,154.0,8.683e-05,3]
[421328889,1777443597885,5000.01,8e-05,2]
[421328890,1777443597927,5000.01,8e-05,2]
[421328891,1777443597953,5000.01,8e-05,2]
[421328892,1777443597978,3499.99,8e-05,2]
[421328893,1777443608180,154.0,8.683e-05,3]
[421328894,1777443673165,154.0,8.683e-05,3]
[421328895,1777443732597,154.0,8.683e-05,3]
[421328896,1777443760415,1000.0,0.000155,30]
[421328897,1777443760792,1000.0,0.0002,120]
[421328898,1777443762024,1000.0,0.000166,120]
[421328899,1777443762311,1000.0,0.000165,120]
[421328900,1777443765137,-2438.7122,8.767e-05,2]
[421328901,1777443765321,-122.5856,8.767e-05,2]
[421328902,1777443765357,-151.0,8.78e-05,2]
[421328903,1777443765388,-213.19692808,8.781e-05,2]
[421328904,1777443765418,-155.0,8.781e-05,2]
[421328905,1777443765450,-1200.0,8.781e-05,2]
[421328906,1777443765481,-150.0,8.781e-05,2]
[421328907,1777443768050,-1866.02041469,8.781e-05,2]
[421328908,1777443768155,-1267.96917062,8.781e-05,2]
[421328909,1777443768187,-500.0,8.782e-05,2]
[421328910,1777443768220,-501.49121853,8.782e-05,2]
[421328911,1777443771096,-1777.518,8.782e-05,2]
[421328912,1777443771131,-180.904,8.782e-05,2]
[421328913,1777443792571,155.0,8.683e-05,3]
[421328914,1777443814018,150.0,8.508e-05,2]
[421328915,1777443814173,150.0,8.508e-05,2]
[421328916,1777443814327,261.1064803,8.508e-05,2]
[421328917,1777443814754,150.0,8.508e-05,2]
[421328918,1777443823657,1000.0,0.000155,30]
[421328919,1777443824737,1000.0,0.0002,120]
[421328920,1777443824994,1000.0,0.000166,120]
[421328921,1777443825292,1000.0,0.000165,120]
[421328922,1777443841301,300.0,8.781e-05,2]
[421328923,1777443841837,150.0,8.781e-05,2]
[421328924,1777443852865,155.0,8.683e-05,3]
[421328926,1777443886452,1000.0,0.000155,30]
[421328928,1777443901569,1200.0,8.781e-05,2]
[421328929,1777443902363,150.0,7.89e-05,2]
[421329030,1777443908973,155.0,8.683e-05,3]
[421329078,1777443911251,150.0,7.89e-05,2]
[421329079,1777443911832,500.0,8.508e-05,2]
[421329080,1777443911980,500.0,8.508e-05,2]
[421329081,1777443912190,500.0,8.508e-05,2]
[421329082,1777443912355,500.0,8.508e-05,2]
[421329083,1777443912506,338.9035197,8.508e-05,2]
[421329084,1777443912530,217.36138854,8.508e-05,2]
[421329085,1777443916354,150.0,7.89e-05,2]
[421329086,1777443916384,150.00000001,8.767e-05,2]
[421329087,1777443918536,150.0,7.89e-05,2]
[421329088,1777443918567,150.0,8.767e-05,2]
[421329089,1777443922052,-500.0,0.0003011,120]
[421329090,1777443925896,173.98319947,0.00029863,120]
[421329091,1777443926429,150.0,7.89e-05,2]
[421329092,1777443926462,295.39033187,7.89e-05,2]
[421329093,1777443951156,687.36365807,0.0003,120]
[421329094,1777443951484,500.0,0.00025507,120]
[421329095,1777443951806,500.0,0.00026411,120]
[421329096,1777443952117,500.0,0.00027315,120]
[421329097,1777443952463,500.0,0.00028219,120]
[421329098,1777443952788,500.0,0.00029123,120]
[421329099,1777443986100,-1190.08,8.783e-05,2]
[421329100,1777444004631,-2707.779734,8.783e-05,2]
[421329101,1777444004646,-5000.01,8.783e-05,2]
[421329102,1777444006818,10000.01,8.682e-05,2]
[421329103,1777444006846,10000.01,8.682e-05,2]
[421329104,1777444006874,10000.01,8.682e-05,2]
[421329105,1777444006903,10000.01,8.682e-05,2]
[421329106,1777444006931,10000.01,8.682e-05,2]
[421329107,1777444006957,10000.01,8.682e-05,2]
[421329108,1777444006984,10000.01,8.682e-05,2]
[421329109,1777444007010,10000.01,8.682e-05,2]
[421329110,1777444007036,10000.01,8.682e-05,2]
[421329111,1777444007062,10000.01,8.682e-05,2]
[421329112,1777444007286,-5000.01,8.682e-05,2]
[421329113,1777444007466,-5000.01,8.682e-05,2]
[421329114,1777444007578,-5000.01,8.682e-05,2]
[421329115,1777444007705,-5000.01,8.682e-05,2]
[421329116,1777444007757,-983.25892248,8.682e-05,2]
[421329117,1777444007835,-5000.01,8.682e-05,2]
[421329118,1777444007932,-5000.01,8.682e-05,2]
[421329119,1777444008047,-5000.01,8.682e-05,2]
[421329120,1777444008131,-5721.6372092,8.682e-05,2]
[421329121,1777444008167,-5000.01,8.682e-05,2]
[421329122,1777444008275,-5000.01,8.682e-05,2]
[421329123,1777444008405,-5000.01,8.682e-05,2]
[421329124,1777444008547,-5000.01,8.682e-05,2]
[421329125,1777444008813,-5000.01,8.682e-05,2]
[421329126,1777444010201,-5000.01,8.682e-05,2]
[421329127,1777444010301,-5000.01,8.682e-05,2]
[421329128,1777444010895,-391.60345209,8.682e-05,2]
[421329129,1777444014924,-5000.01,8.682e-05,2]
[421329130,1777444014939,-5000.01,8.682e-05,2]
[421329131,1777444015094,-5000.01,8.682e-05,2]
[421329132,1777444016168,-4268.84758657,8.682e-05,2]
[421329133,1777444016246,-10000.01,8.682e-05,2]
[421329134,1777444016377,-10000.01,8.682e-05,2]
[421329135,1777444016477,-10000.01,8.682e-05,2]
[421329136,1777444016840,-10000.01,8.682e-05,2]
[421329137,1777444016885,-10000.01,8.682e-05,2]
[421329138,1777444016900,-10000.01,8.682e-05,2]
[421329139,1777444016952,-10000.01,8.682e-05,2]
[421329140,1777444017099,-10000.01,8.682e-05,2]
[421329141,1777444017189,-10000.01,8.682e-05,2]
[421329142,1777444018275,-180.69662149,8.682e-05,2]
[421329143,1777444020295,-450.0,8.682e-05,2]
[421329144,1777444022202,-172.0255236,8.681e-05,2]
[421329145,1777444022237,-127.9744764,8.681e-05,2]
[421329146,1777444022270,-150.0,8.681e-05,2]
[421329147,1777444022331,-9444.0610472,8.682e-05,2]
[421329148,1777444022378,-10000.01,8.682e-05,2]
[421329149,1777444022494,-10000.01,8.682e-05,2]
[421329150,1777444022681,-10000.01,8.682e-05,2]
[421329151,1777444022791,-10000.01,8.682e-05,2]
[421329152,1777444022931,-10000.01,8.682e-05,2]
[421329153,1777444023034,-10000.01,8.682e-05,2]
[421329154,1777444023185,-10000.01,8.682e-05,2]
[421329155,1777444023302,-10000.01,8.682e-05,2]
[421329156,1777444023406,-10000.01,8.682e-05,2]
[421329157,1777444025254,203.84,8.419e-05,2]
[421329158,1777444028241,-10000.01,8.682e-05,2]
[421329159,1777444028340,-10000.01,8.682e-05,2]
[421329160,1777444028477,-10000.01,8.682e-05,2]
[421329161,1777444028590,-10000.01,8.682e-05,2]
[421329162,1777444028700,-10000.01,8.682e-05,2]
[421329163,1777444028924,-10000.01,8.682e-05,2]
[421329164,1777444029037,-10000.01,8.682e-05,2]
[421329165,1777444029193,-10000.01,8.682e-05,2]
[421329166,1777444029296,-10000.01,8.682e-05,2]
[421329167,1777444029413,-10000.01,8.682e-05,2]
[421329168,1777444034312,-10000.01,8.682e-05,2]
[421329169,1777444034416,-10000.01,8.682e-05,2]
[421329170,1777444034537,-10000.01,8.682e-05,2]
[421329171,1777444034638,-10000.01,8.682e-05,2]
[421329172,1777444034718,-10000.01,8.682e-05,2]
[421329173,1777444034804,-10000.01,8.682e-05,2]
[421329174,1777444034907,-10000.01,8.682e-05,2]
[421329175,1777444035010,-10000.01,8.682e-05,2]
[421329176,1777444035118,-10000.01,8.682e-05,2]
[421329177,1777444035602,-10000.01,8.682e-05,2]
[421329178,1777444052547,-10000.01,8.682e-05,2]
[421329179,1777444052780,-10000.01,8.682e-05,2]
[421329180,1777444052887,-10000.01,8.682e-05,2]
[421329181,1777444058505,-308.90653903,8.682e-05,2]
[421329182,1777444058531,-9382.19692194,8.682e-05,2]
[421329191,1777444147654,10000.01,8.682e-05,2]
[421329192,1777444147684,10000.01,8.682e-05,2]
[421329193,1777444147712,10000.01,8.682e-05,2]
[421329194,1777444147741,10000.01,8.682e-05,2]
[421329195,1777444147769,10000.01,8.682e-05,2]
[421329196,1777444147797,10000.01,8.682e-05,2]
[421329197,1777444147826,10000.01,8.682e-05,2]
[421329198,1777444147854,10000.01,8.682e-05,2]
[421329199,1777444147882,10000.01,8.682e-05,2]
[421329200,1777444147912,10000.01,8.682e-05,2]
[421329201,1777444147943,5000.01,8.682e-05,2]
[421329202,1777444156113,-5000.01,8.682e-05,2]
[421329203,1777444158319,-10000.01,8.682e-05,2]
[421329204,1777444158469,-10000.01,8.682e-05,2]
[421329205,1777444158627,-10000.01,8.682e-05,2]
[421329206,1777444158749,-10000.01,8.682e-05,2]
[421329207,1777444158864,-10000.01,8.682e-05,2]
[421329211,1777444230753,261.466,0.0003011,120]
[421329214,1777444231937,-4159.8346,8.582e-05,2]
[421329215,1777444231948,-6844.8476,8.582e-05,2]
[421329216,1777444231957,-300.0,8.636e-05,2]
[421329217,1777444231967,-300.0,8.636e-05,2]
[421329218,1777444231978,-1200.0,8.636e-05,2]
[421329219,1777444231988,-300.0,8.636e-05,2]
[421329220,1777444231998,-6032.40776,8.637e-05,2]
[421329221,1777444232008,-744.0,8.681e-05,2]
[421329222,1777444232019,-150.0,8.681e-05,2]
[421329223,1777444232028,-1113298.01072772,8.682e-05,2]
[421329224,1777444232040,-158543.36107954,8.682e-05,2]
[421329225,1777444232051,-6143.62820849,8.682e-05,2]
[421329226,1777444232063,-1072.50624976,8.682e-05,2]
[421329227,1777444232075,-463.89442576,8.682e-05,2]
[421329228,1777444232160,-314.57995572,8.682e-05,2]
[421329229,1777444232173,-1410.02104493,8.682e-05,2]
[421329230,1777444232184,-448.42004428,8.682e-05,2]
[421329234,1777444240025,5000.01,8.582e-05,2]
[421329235,1777444240052,5000.01,8.582e-05,2]
[421329238,1777444240079,5000.01,8.582e-05,2]
[421329239,1777444240235,-291.60421677,8.582e-05,2]
[421329240,1777444240612,-60032.97943481,8.582e-05,2]
[421329241,1777444240670,-929.97,8.582e-05,2]
[421329242,1777444240726,-885.25120918,8.582e-05,2]
[421329243,1777444240738,-793.66649967,8.582e-05,2]
[421329244,1777444240750,-2787.32823957,8.582e-05,2]
[421329245,1777444240760,-254.73954372,8.681e-05,2]
[421329246,1777444240770,-500.0,8.681e-05,2]
[421329247,1777444240782,-500.0,8.681e-05,2]
[421329248,1777444240791,-641.53637725,8.681e-05,2]
[421329249,1777444240803,-500.0,8.681e-05,2]
[421329250,1777444240813,-500.0,8.681e-05,2]
[421329251,1777444240823,-196.81292951,8.681e-05,2]
[421329252,1777444240834,-500.0,8.681e-05,2]
[421329254,1777444240844,-18807.45148252,8.682e-05,2]
[421329256,1777444240856,-3899.45,8.682e-05,2]
[421329489,1777444243071,-523626.178,8.682e-05,2]
[421329491,1777444243083,-1936.07282185,8.682e-05,2]
[421329520,1777444243356,-11724.52015836,8.682e-05,2]
[421329832,1777444246594,-7159.07126642,8.682e-05,2]
[421329833,1777444246650,-893.08780813,8.682e-05,2]
[421329834,1777444246709,-9430.35816085,8.682e-05,2]
[421329889,1777444248179,-15122.28698473,8.682e-05,2]
[421329900,1777444326050,177.0,8.682e-05,3]
[421329902,1777444399027,1029.0779948,8.681e-05,3]
[421329904,1777444432418,273.3521427,0.00029863,120]
[421329918,1777444743782,870.0,0.00030136,120]
[421329920,1777444785204,360.0,0.00030137,120]
[421329921,1777444808136,2716.3,0.00030137,120]
[421329925,1777444812760,2561.2978,8.493e-05,2]
[421329926,1777444823162,1190.0,0.00030137,120]
[421329930,1777444842362,150.0,8.5e-05,2]
[421329934,1777444875876,500.0,8.308e-05,2]
[421329935,1777444876032,500.0,8.308e-05,2]
[421329938,1777444876187,500.0,8.308e-05,2]
[421329939,1777444876345,393.25409619,8.308e-05,2]
[421329940,1777444877929,500.0,8.308e-05,2]
[421329941,1777444878084,500.0,8.308e-05,2]
[421329942,1777444878252,500.0,8.308e-05,2]
[421329943,1777444878417,500.0,8.308e-05,2]
[421329944,1777444878605,500.0,8.308e-05,2]
[421329945,1777444879214,500.0,8.308e-05,2]
[421329946,1777444879341,500.0,8.308e-05,2]
[421329947,1777444879410,500.0,8.308e-05,2]
[421329948,1777444879472,500.0,8.308e-05,2]
[421329949,1777444879541,500.0,8.308e-05,2]
[421329950,1777444879618,500.0,8.308e-05,2]
[421329951,1777444879786,500.0,8.308e-05,2]
[421329952,1777444879936,483.61529848,8.308e-05,2]
[421329953,1777444880882,500.0,8.308e-05,2]
[421329954,1777444881093,500.0,8.308e-05,2]
[421329955,1777444881244,500.0,8.308e-05,2]
[421329956,1777444881444,500.0,8.308e-05,2]
[421329957,1777444881591,500.0,8.308e-05,2]
[421329958,1777444881724,500.0,8.308e-05,2]
[421329959,1777444881912,500.0,8.308e-05,2]
[421329960,1777444882054,500.0,8.308e-05,2]
[421329961,1777444882226,500.0,8.308e-05,2]
[421329962,1777444882369,500.0,8.308e-05,2]
[421329963,1777444882561,500.0,8.308e-05,2]
[421329964,1777444882751,500.0,8.308e-05,2]
[421329965,1777444883111,500.0,8.308e-05,2]
[421329966,1777444883264,231.85832852,8.308e-05,2]
[421329968,1777444907867,150.0,8.5e-05,2]
[421329969,1777444934114,150.0,8.059e-05,2]
[421329970,1777444937890,500.0,8.234e-05,2]
[421329971,1777444938041,500.0,8.234e-05,2]
[421329972,1777444938077,500.0,8.234e-05,2]
[421329973,1777444938201,500.0,8.234e-05,2]
[421329974,1777444938251,500.0,8.234e-05,2]
[421329975,1777444938360,500.0,8.234e-05,2]
[421329976,1777444938396,500.0,8.234e-05,2]
[421329977,1777444938517,500.0,8.234e-05,2]
[421329978,1777444938556,353.87756393,8.234e-05,2]
[421329979,1777444938672,500.0,8.234e-05,2]
[421329980,1777444938708,150.0,8.234e-05,2]
[421329981,1777444938773,500.0,8.234e-05,2]
[421329982,1777444938835,500.0,8.234e-05,2]
[421329983,1777444938964,504.09729027,8.234e-05,2]
[421329984,1777444939012,500.0,8.234e-05,2]
[421329985,1777444939145,500.0,8.234e-05,2]
[421329986,1777444939341,500.0,8.234e-05,2]
[421329987,1777444939439,500.0,8.234e-05,2]
[421329988,1777444939589,500.0,8.234e-05,2]
[421329989,1777444939721,500.0,8.234e-05,2]
[421329990,1777444939764,617.08578859,8.234e-05,2]
[421329991,1777444939875,500.0,8.234e-05,2]
[421329992,1777444940055,500.0,8.234e-05,2]
[421329993,1777444940176,500.0,8.234e-05,2]
[421329994,1777444940330,500.0,8.234e-05,2]
[421329995,1777444940428,150.0,8.234e-05,2]
[421329996,1777444940484,500.0,8.234e-05,2]
[421329997,1777444940655,500.0,8.234e-05,2]
[421329998,1777444940691,150.0,8.234e-05,2]
[421329999,1777444941002,500.0,8.234e-05,2]
[421330000,1777444941041,261.1064803,8.234e-05,2]
[421330001,1777444941093,500.0,8.234e-05,2]
[421330002,1777444941137,150.0,8.234e-05,2]
[421330003,1777444941189,500.0,8.234e-05,2]
[421330004,1777444941279,500.0,8.234e-05,2]
[421330005,1777444941455,500.0,8.234e-05,2]
[421330006,1777444941600,544.3204282,8.234e-05,2]
[421330007,1777445037995,10000.0,0.0003,120]
[421330008,1777445050367,3868.41,0.0003,120]
[421330010,1777445072899,170.25,0.00030136,120]
[421330011,1777445073328,170.25,0.00030136,120]
[421330012,1777445073793,170.25,0.00030136,120]
[421330013,1777445074274,170.25,0.00030136,120]
[421330017,1777445118663,150.0,8.407e-05,2]
[421330018,1777445118819,150.0,8.407e-05,2]
[421330019,1777445119182,150.0,8.407e-05,2]
[421330020,1777445119393,150.0,8.407e-05,2]
[421330021,1777445119530,184.86011981,8.407e-05,2]
[421330022,1777445119867,500.0,8.407e-05,2]
[421330023,1777445120031,500.0,8.407e-05,2]
[421330024,1777445120339,500.0,8.407e-05,2]
[421330025,1777445120512,500.0,8.407e-05,2]
[421330026,1777445120684,500.0,8.407e-05,2]
[421330027,1777445120853,500.0,8.407e-05,2]
[421330028,1777445121018,500.0,8.407e-05,2]
[421330029,1777445121250,500.0,8.407e-05,2]
[421330030,1777445121395,500.0,8.407e-05,2]
[421330031,1777445121556,500.0,8.407e-05,2]
[421330032,1777445121719,500.0,8.407e-05,2]
[421330033,1777445122196,500.0,8.407e-05,2]
[421330034,1777445122664,500.0,8.407e-05,2]
[421330035,1777445122705,500.0,8.407e-05,2]